fUSD/lending_fUSD_20250515
["ID","MTS","AMOUNT","RATE_DAILY","PERIOD"]
[361117422,1747275041060,-427.44154678,0.00011812,2]
[361117423,1747275041080,-328.79539823,0.00011812,2]
[361117424,1747275041102,-400.0,0.00011812,2]
[361117425,1747275041125,-456.55573567,0.00011812,2]
[361117426,1747275041146,-466.64,0.00011812,2]
[361117427,1747275041166,-400.0,0.00011812,2]
[361117428,1747275041176,-442.03,0.00011812,2]
[361117429,1747275041188,-400.0,0.00011812,2]
[361117430,1747275041198,-1223.48,0.00011812,2]
[361117431,1747275041210,-400.0,0.00011812,2]
[361117432,1747275041220,-412.24,0.00011812,2]
[361117433,1747275041230,-400.0,0.00011812,2]
[361117434,1747275041240,-400.0,0.00011812,2]
[361117435,1747275041250,-400.0,0.00011812,2]
[361117436,1747275041259,-400.0,0.00011812,2]
[361117437,1747275041270,-836.75,0.00011812,2]
[361117438,1747275041280,-500.0,0.00011812,2]
[361117439,1747275041289,-400.0,0.00011812,2]
[361117440,1747275041299,-400.0,0.00011812,2]
[361117441,1747275041310,-456.38,0.00011812,2]
[361117442,1747275041321,-505.17,0.00011812,2]
[361117443,1747275041331,-1962.71,0.00011812,2]
[361117444,1747275041341,-417.35,0.00011812,2]
[361117445,1747275041350,-850.76,0.00011812,2]
[361117446,1747275041360,-534.60078864,0.00011812,2]
[361117447,1747275041370,-1268.26,0.00011812,2]
[361117448,1747275041379,-400.0,0.00011812,2]
[361117449,1747275041389,-2816.25,0.00011812,2]
[361117450,1747275041399,-518.49,0.00011812,2]
[361117451,1747275041408,-400.0,0.00011812,2]
[361117452,1747275041418,-400.0,0.00011812,2]
[361117453,1747275041429,-400.0,0.00011812,2]
[361117454,1747275041439,-619.63,0.00011812,2]
[361117455,1747275041449,-400.0,0.00011812,2]
[361117456,1747275041458,-400.0,0.00011812,2]
[361117457,1747275041469,-400.0,0.00011812,2]
[361117458,1747275041479,-400.0,0.00011812,2]
[361117459,1747275041489,-1108.64,0.00011812,2]
[361117460,1747275041499,-400.0,0.00011812,2]
[361117461,1747275041508,-468.45,0.00011812,2]
[361117462,1747275041518,-563.84,0.00011812,2]
[361117463,1747275041527,-400.0,0.00011812,2]
[361117464,1747275041537,-400.0,0.00011812,2]
[361117465,1747275041548,-3288.17,0.00011812,2]
[361117466,1747275041561,-400.0,0.00011812,2]
[361117467,1747275041571,-773.28,0.00011812,2]
[361117468,1747275041580,-400.0,0.00011812,2]
[361117469,1747275041589,-400.0,0.00011812,2]
[361117470,1747275041599,-400.0,0.00011812,2]
[361117471,1747275041608,-400.0,0.00011812,2]
[361117472,1747275041617,-5635.06400273,0.00011812,2]
[361117473,1747275041629,-488.67557592,0.00011812,2]
[361117506,1747275043592,-4875.5475776,0.00011812,2]
[361117507,1747275043608,-4580.00016959,0.00011812,2]
[361117508,1747275043659,-20816.71399649,0.00011812,2]
[361117509,1747275043670,-3369.46240664,0.00011812,2]
[361117525,1747275046326,-457.51,0.000111,2]
[361117526,1747275046336,-870.1908,0.00011812,2]
[361117527,1747275046380,-339.28840676,0.000117,2]
[361117528,1747275046390,-1663.06547103,0.00011812,2]
[361117529,1747275046400,-400.0,0.00011812,2]
[361117530,1747275046410,-515.81,0.00011812,2]
[361117531,1747275046419,-400.0,0.00011812,2]
[361117532,1747275046430,-717.3,0.00011812,2]
[361117533,1747275046440,-588.28,0.00011812,2]
[361117534,1747275046450,-400.0,0.00011812,2]
[361117535,1747275046460,-400.0,0.00011812,2]
[361117536,1747275046470,-434.05,0.00011812,2]
[361117537,1747275046480,-169.01109961,0.00011812,2]
[361117538,1747275046489,-2478.5024226,0.00011813,2]
[361117539,1747275046519,-288.32415042,0.00011813,2]
[361117540,1747275046531,-14602.00221935,0.00011813,2]
[361117541,1747275046542,-1468.93337338,0.00011813,2]
[361117542,1747275046562,-400.0,0.00011812,2]
[361117543,1747275046571,-239.52131208,0.00011813,2]
[361117544,1747275046583,-3690.75665532,0.00011813,2]
[361117547,1747275076642,200.0,0.00018,14]
[361117548,1747275129544,-182.14652161,0.00010713,2]
[361117549,1747275129566,-202.257031,0.00010958,2]
[361117550,1747275129588,-165.628926,0.00010958,2]
[361117552,1747275184893,191.552937,0.00010958,2]
[361117553,1747275185227,185.048216,0.00010958,2]
[361117554,1747275448680,150.0,0.00010585,7]
[361117555,1747275589638,500.0,0.00010959,2]
[361117556,1747275589996,485.07806839,0.00010959,2]
[361117557,1747275604885,-150.0,0.00010573,2]
[361117560,1747275932709,173.48285091,0.0002,120]
[361117561,1747276000631,441.77,8.852e-05,2]
[361117581,1747276231759,-19.97,0.00010573,2]
[361117582,1747276231769,-250.0,0.00010597,2]
[361117583,1747276231778,-200.0,0.00010597,2]
[361117584,1747276231787,-200.0,0.00010621,2]
[361117585,1747276231796,-300.0,0.00010743,2]
[361117586,1747276231805,-1092.2666,0.00010744,2]
[361117587,1747276231822,-939.82057194,0.00010744,2]
[361117588,1747276231930,-10488.70282806,0.00010744,2]
[361117589,1747276231940,-201.86,0.0001079,2]
[361117591,1747276231950,-376.82,0.00010794,2]
[361117593,1747276231959,-198.06,0.0001081,2]
[361117595,1747276231968,-201.86,0.00010844,2]
[361117596,1747276231977,-150.0,0.00010959,2]
[361117597,1747276231986,-441.77,0.00011116,2]
[361117598,1747276231995,-1200.0,0.00011629,2]
[361117599,1747276232003,-200.0,0.0001163,2]
[361117600,1747276232012,-250.0,0.0001163,2]
[361117601,1747276232021,-200.0,0.0001163,2]
[361117602,1747276232030,-250.0,0.0001163,2]
[361117603,1747276232039,-200.0,0.0001163,2]
[361117604,1747276232047,-864.16826048,0.00011636,2]
[361117605,1747276232056,-452.41382723,0.0001164,2]
[361117606,1747276232065,-207.4,0.00011702,2]
[361117607,1747276232074,-300.0,0.00011707,2]
[361117608,1747276232082,-10621.7032,0.00011709,2]
[361117609,1747276232091,-3764.939,0.00011709,2]
[361117610,1747276232101,-182.48222191,0.0001171,2]
[361117611,1747276232110,-238.43462782,0.0001171,2]
[361117613,1747276232119,-9251.80939106,0.00011711,2]
[361117616,1747276232130,-3292.73164397,0.00011711,2]
[361117618,1747276232139,-150.0,0.00011712,2]
[361117620,1747276232148,-500.0,0.00011713,2]
[361117622,1747276232158,-1106.4046,0.00011713,2]
[361117624,1747276232168,-366.6182,0.00011713,2]
[361117626,1747276232176,-1000.0,0.00011713,2]
[361117628,1747276232185,-166.135,0.00011793,2]
[361117629,1747276232195,-155.0,0.00011804,2]
[361117631,1747276232204,-668.65185757,0.00011804,2]
[361117633,1747276232213,-151.0,0.00011804,2]
[361117635,1747276232222,-151.0,0.00011804,2]
[361117637,1747276232231,-2980.741,0.00011807,2]
[361117639,1747276232240,-402.20390687,0.00011807,2]
[361117641,1747276232249,-400.0,0.00011807,2]
[361117643,1747276232259,-400.0,0.00011807,2]
[361117645,1747276232267,-500.48284293,0.00011807,2]
[361117647,1747276232276,-400.0,0.00011807,2]
[361117649,1747276232285,-400.0,0.00011807,2]
[361117651,1747276232295,-421.25090302,0.00011807,2]
[361117652,1747276232304,-403.78248052,0.00011807,2]
[361117653,1747276232313,-400.0,0.00011807,2]
[361117654,1747276232322,-400.0,0.00011807,2]
[361117655,1747276232332,-400.0,0.00011807,2]
[361117656,1747276232342,-401.81705751,0.00011808,2]
[361117657,1747276232352,-400.0,0.00011808,2]
[361117658,1747276232362,-400.13975271,0.00011808,2]
[361117659,1747276232371,-400.0,0.00011808,2]
[361117660,1747276232380,-258.37699692,0.00011808,2]
[361117661,1747276232390,-504.01442991,0.00011808,2]
[361117662,1747276232399,-503.84596927,0.00011808,2]
[361117663,1747276232412,-400.0,0.00011808,2]
[361117664,1747276232422,-403.83382171,0.00011808,2]
[361117665,1747276232431,-403.38532696,0.00011808,2]
[361117666,1747276232440,-522.43126641,0.00011808,2]
[361117667,1747276232449,-516.47443635,0.00011808,2]
[361117668,1747276232458,-401.79561933,0.00011808,2]
[361117669,1747276232467,-174.64229688,0.00011808,2]
[361117670,1747276232476,-520.99108959,0.00011808,2]
[361117671,1747276232485,-406.84831895,0.00011808,2]
[361117672,1747276232494,-455.59878942,0.00011808,2]
[361117673,1747276232503,-154.23751254,0.00011808,2]
[361117674,1747276232512,-450.26,0.00011808,2]
[361117675,1747276232522,-400.0,0.00011808,2]
[361117676,1747276232531,-539.22,0.00011808,2]
[361117677,1747276232540,-400.0,0.00011808,2]
[361117678,1747276232550,-400.0,0.00011808,2]
[361117679,1747276232561,-400.0,0.00011808,2]
[361117680,1747276232570,-463.13,0.00011808,2]
[361117681,1747276232584,-505.04677704,0.00011808,2]
[361117682,1747276232596,-548.33,0.00011808,2]
[361117683,1747276232607,-400.0,0.00011808,2]
[361117684,1747276232617,-465.12,0.00011808,2]
[361117685,1747276232626,-425.58,0.00011808,2]
[361117686,1747276232636,-400.0,0.00011808,2]
[361117687,1747276232646,-400.0,0.00011808,2]
[361117688,1747276232656,-434.99,0.00011808,2]
[361117689,1747276232665,-400.0,0.00011808,2]
[361117690,1747276232675,-400.0,0.00011808,2]
[361117691,1747276232684,-400.0,0.00011808,2]
[361117692,1747276232694,-400.0,0.00011808,2]
[361117693,1747276232703,-400.0,0.00011808,2]
[361117694,1747276232712,-400.0,0.00011808,2]
[361117695,1747276232721,-422.31627717,0.00011808,2]
[361117696,1747276232730,-403.15810349,0.00011808,2]
[361117697,1747276232740,-419.66909548,0.00011808,2]
[361117698,1747276232748,-431.53363994,0.00011808,2]
[361117699,1747276232757,-400.0,0.00011808,2]
[361117700,1747276232766,-400.0,0.00011808,2]
[361117701,1747276232775,-535.57,0.00011808,2]
[361117702,1747276232784,-400.0,0.00011808,2]
[361117703,1747276232794,-412.21167649,0.00011808,2]
[361117704,1747276232803,-266.76877581,0.00011808,2]
[361117705,1747276232812,-297.50286684,0.00011808,2]
[361117706,1747276232821,-400.0,0.00011808,2]
[361117707,1747276232831,-400.0,0.00011808,2]
[361117708,1747276232841,-400.0,0.00011808,2]
[361117709,1747276232851,-400.0,0.00011808,2]
[361117710,1747276232860,-400.0,0.00011808,2]
[361117711,1747276232870,-886.86,0.00011808,2]
[361117712,1747276232880,-400.0,0.00011808,2]
[361117713,1747276232890,-400.0,0.00011808,2]
[361117714,1747276232900,-400.0,0.00011808,2]
[361117715,1747276232909,-456.14784906,0.00011808,2]
[361117716,1747276232919,-400.0,0.00011808,2]
[361117717,1747276232928,-400.0,0.00011808,2]
[361117718,1747276232937,-400.0,0.00011808,2]
[361117719,1747276232947,-400.0,0.00011808,2]
[361117720,1747276232956,-374.11916068,0.00011808,2]
[361117721,1747276232966,-400.0,0.00011808,2]
[361117722,1747276232975,-400.0,0.00011808,2]
[361117723,1747276232985,-400.0,0.00011808,2]
[361117724,1747276232995,-457.46990999,0.00011808,2]
[361117725,1747276233006,-400.0,0.00011808,2]
[361117726,1747276233015,-400.0,0.00011808,2]
[361117727,1747276233024,-426.94878794,0.00011808,2]
[361117728,1747276233034,-400.0,0.00011808,2]
[361117729,1747276233044,-400.0,0.00011808,2]
[361117730,1747276233054,-400.0,0.00011808,2]
[361117731,1747276233063,-400.0,0.00011808,2]
[361117732,1747276233073,-513.66587015,0.00011808,2]
[361117733,1747276233082,-445.09955086,0.00011808,2]
[361117734,1747276233092,-456.0453941,0.00011808,2]
[361117735,1747276233103,-400.0,0.00011808,2]
[361117736,1747276233112,-400.0,0.00011808,2]
[361117737,1747276233122,-400.0,0.00011808,2]
[361117738,1747276233132,-456.19854573,0.00011808,2]
[361117739,1747276233141,-400.0,0.00011808,2]
[361117740,1747276233151,-400.0,0.00011808,2]
[361117741,1747276233160,-411.37864822,0.00011808,2]
[361117742,1747276233170,-400.0,0.00011808,2]
[361117743,1747276233180,-400.0,0.00011808,2]
[361117744,1747276233189,-400.0,0.00011808,2]
[361117745,1747276233199,-400.0,0.00011808,2]
[361117746,1747276233208,-151.0,0.00011808,2]
[361117747,1747276233218,-7530.3704412,0.00011808,2]
[361117748,1747276233245,-2358.60206527,0.00011808,2]
[361117755,1747276238004,-510.9,0.00011807,2]
[361117756,1747276238016,-400.0,0.00011807,2]
[361117757,1747276238028,-401.08789474,0.00011807,2]
[361117758,1747276238039,-160.93718788,0.00011807,2]
[361117759,1747276238050,-210.85510982,0.00011807,2]
[361117760,1747276238061,-318.11870929,0.00011808,2]
[361117761,1747276238150,-0.00314738,0.00011808,2]
[361117762,1747276238163,-424.88308538,0.00011808,2]
[361117763,1747276238189,-3742.70217563,0.00011808,2]
[361117764,1747276238603,-329.807,0.00011808,2]
[361117765,1747276238662,-666.24,0.00011808,2]
[361117766,1747276238716,-280.407,0.00011808,2]
[361117767,1747276238794,-135.51088563,0.00011808,2]
[361117768,1747276238803,-415.39513833,0.00011808,2]
[361117769,1747276238812,-400.0,0.00011808,2]
[361117770,1747276238822,-717.48,0.00011808,2]
[361117771,1747276238832,-620.97,0.00011808,2]
[361117772,1747276238841,-400.0,0.00011808,2]
[361117773,1747276238851,-400.0,0.00011808,2]
[361117774,1747276238861,-671.85,0.00011808,2]
[361117775,1747276238870,-1395.25597604,0.00011808,2]
[361117776,1747276240003,-400.0,0.00011807,2]
[361117777,1747276240012,-339.58402396,0.00011808,2]
[361117778,1747276240022,-764.77,0.00011808,2]
[361117779,1747276240031,-400.0,0.00011808,2]
[361117780,1747276240040,-605.87,0.00011808,2]
[361117781,1747276240049,-1407.58,0.00011808,2]
[361117782,1747276240058,-400.0,0.00011808,2]
[361117783,1747276240067,-400.0,0.00011808,2]
[361117784,1747276240076,-400.0,0.00011808,2]
[361117785,1747276240086,-400.0,0.00011808,2]
[361117786,1747276240094,-544.57,0.00011808,2]
[361117787,1747276240103,-400.0,0.00011808,2]
[361117788,1747276240112,-400.0,0.00011808,2]
[361117789,1747276240121,-400.0,0.00011808,2]
[361117790,1747276240130,-790.98,0.00011808,2]
[361117791,1747276240139,-400.0,0.00011808,2]
[361117792,1747276240148,-400.0,0.00011808,2]
[361117793,1747276240158,-1058.85,0.00011808,2]
[361117794,1747276240167,-541.15810795,0.00011808,2]
[361117795,1747276240175,-428.6,0.00011808,2]
[361117796,1747276240183,-400.0,0.00011808,2]
[361117798,1747276240191,-678.49,0.00011808,2]
[361117799,1747276240201,-400.0,0.00011808,2]
[361117801,1747276240210,-400.0,0.00011808,2]
[361117802,1747276240219,-947.85,0.00011808,2]
[361117803,1747276240228,-400.0,0.00011808,2]
[361117804,1747276240237,-3318.25,0.00011808,2]
[361117805,1747276240246,-786.64,0.00011808,2]
[361117806,1747276240255,-400.0,0.00011808,2]
[361117807,1747276240264,-500.0,0.00011808,2]
[361117808,1747276240273,-400.0,0.00011808,2]
[361117809,1747276240281,-1156.4,0.00011808,2]
[361117810,1747276240292,-663.52,0.00011808,2]
[361117811,1747276240301,-400.0,0.00011808,2]
[361117812,1747276240310,-400.0,0.00011808,2]
[361117813,1747276240319,-400.0,0.00011808,2]
[361117814,1747276240328,-400.0,0.00011808,2]
[361117815,1747276240337,-412.33,0.00011808,2]
[361117816,1747276240346,-4042.12,0.00011808,2]
[361117817,1747276240357,-400.0,0.00011808,2]
[361117818,1747276240366,-479.44,0.00011808,2]
[361117819,1747276240376,-400.0,0.00011808,2]
[361117820,1747276240385,-400.0,0.00011808,2]
[361117821,1747276240394,-1611.39,0.00011808,2]
[361117822,1747276240403,-560.33,0.00011808,2]
[361117823,1747276240412,-1584.48,0.00011808,2]
[361117824,1747276240421,-400.0,0.00011808,2]
[361117825,1747276240430,-852.37,0.00011808,2]
[361117826,1747276240439,-640.35,0.00011808,2]
[361117827,1747276240448,-1424.83,0.00011808,2]
[361117828,1747276240458,-400.0,0.00011808,2]
[361117829,1747276240467,-547.28,0.00011808,2]
[361117830,1747276240476,-672.36,0.00011808,2]
[361117831,1747276240486,-151.0,0.00011808,2]
[361117832,1747276240495,-1225.57,0.00011808,2]
[361117833,1747276240505,-2228.05,0.00011808,2]
[361117834,1747276240515,-476.59,0.00011808,2]
[361117835,1747276240524,-400.0,0.00011808,2]
[361117836,1747276240533,-886.75,0.00011808,2]
[361117837,1747276240543,-1051.48397183,0.00011808,2]
[361117838,1747276240552,-400.0,0.00011808,2]
[361117839,1747276240565,-400.0,0.00011808,2]
[361117840,1747276240574,-151.0,0.00011808,2]
[361117841,1747276240583,-151.0,0.00011808,2]
[361117842,1747276240592,-2268.09,0.00011808,2]
[361117843,1747276240602,-400.0,0.00011808,2]
[361117844,1747276240613,-195.38328605,0.00011808,2]
[361117845,1747276240623,-3711.71,0.00011808,2]
[361117846,1747276240631,-437.55,0.00011808,2]
[361117847,1747276240643,-400.17,0.00011808,2]
[361117848,1747276240653,-13073.07,0.00011808,2]
[361117849,1747276240663,-400.0,0.00011808,2]
[361117850,1747276240673,-359.51196275,0.00011808,2]
[361117851,1747276240682,-151.0,0.00011808,2]
[361117852,1747276240692,-157.00065,0.00011808,2]
[361117853,1747276240701,-656.6,0.00011808,2]
[361117854,1747276240711,-407.62,0.00011808,2]
[361117855,1747276240721,-400.0,0.00011808,2]
[361117856,1747276240732,-400.0,0.00011808,2]
[361117857,1747276240741,-4277.83,0.00011808,2]
[361117858,1747276240751,-400.0,0.00011808,2]
[361117859,1747276240760,-400.0,0.00011808,2]
[361117860,1747276240770,-6933.34922914,0.0001181,2]
[361117861,1747276240782,-6173.224748,0.0001181,2]
[361117862,1747276240793,-39139.72153967,0.0001181,2]
[361117863,1747276240808,-460.758002,0.0001181,2]
[361117864,1747276240819,-923.615,0.0001181,2]
[361117865,1747276240847,-328.47396994,0.0001181,2]
[361117887,1747276245586,-400.0,0.00011807,2]
[361117888,1747276245596,-400.0,0.00011807,2]
[361117889,1747276245607,-407.70399588,0.00011807,2]
[361117890,1747276245617,-406.43790595,0.00011807,2]
[361117891,1747276245627,-400.0,0.00011807,2]
[361117892,1747276245638,-539.2,0.00011807,2]
[361117893,1747276245649,-404.61878126,0.00011807,2]
[361117894,1747276245658,-1916.27,0.00011808,2]
[361117895,1747276245668,-400.0,0.00011808,2]
[361117896,1747276245678,-91634.47487386,0.0001181,2]
[361117897,1747276245960,-375.19533439,0.0001181,2]
[361117898,1747276245972,-374.68,0.0001181,2]
[361117904,1747276496353,150.0,0.00010877,7]
[361117905,1747276712145,500.0,0.00027397,120]
[361117906,1747276712508,4060.06024807,0.0001,2]
[361117907,1747276738664,450.0,0.0001,2]
[361117908,1747276875431,230.55826694,0.000273,120]
[361117909,1747277216925,411.89,8.787e-05,2]
[361117910,1747277291720,666.0,0.00018,14]
[361117915,1747277431654,-1200.0,0.00010656,2]
[361117916,1747277431663,-300.0,0.00010656,2]
[361117918,1747277431673,-200.0,0.00010656,2]
[361117919,1747277431682,-7114.5,0.00010657,2]
[361117920,1747277431708,-1228.50426425,0.00010657,2]
[361117921,1747277431720,-251.04828034,0.00010657,2]
[361117922,1747277431731,-6433.01763485,0.00010657,2]
[361117923,1747277431817,-2571.87429594,0.00010657,2]
[361117924,1747277431871,-713.37408926,0.00010657,2]
[361117925,1747277431927,-1584.34143536,0.00010657,2]
[361117926,1747277431937,-200.0,0.00010718,2]
[361117927,1747277431947,-160.19,0.00010747,2]
[361117928,1747277431957,-200.0,0.00010759,2]
[361117929,1747277431966,-163.43,0.00010772,2]
[361117930,1747277431976,-196.68,0.00010788,2]
[361117931,1747277431987,-150.0,0.00010852,2]
[361117932,1747277431996,-1000.0,0.00010869,2]
[361117933,1747277432005,-351.95,0.00010886,2]
[361117934,1747277432015,-155.962,0.00010889,2]
[361117935,1747277432024,-411.89,0.00011051,2]
[361117936,1747277432033,-166.7,0.00011118,2]
[361117937,1747277432043,-207.4,0.00011407,2]
[361117938,1747277432051,-250.0,0.00011414,2]
[361117939,1747277432061,-947.66,0.00011414,2]
[361117940,1747277432070,-403.9,0.00011414,2]
[361117941,1747277432080,-2158.49989377,0.00011414,2]
[361117942,1747277432107,-1865.45817321,0.00011414,2]
[361117943,1747277432118,-424.91916695,0.00011414,2]
[361117951,1747277437631,-863.64276607,0.00011414,2]
[361117952,1747277437640,-766.18961648,0.0001153,2]
[361117953,1747277437654,-97.978644,0.0001153,2]
[361117954,1747277437664,-402.021356,0.00011534,2]
[361117955,1747277437736,-50.698644,0.00011534,2]
[361117956,1747277437746,-150.0,0.00011706,2]
[361117957,1747277437755,-4912.51422482,0.00011706,2]
[361117958,1747277437765,-4768.09359245,0.00011707,2]
[361117959,1747277437795,-424.538785,0.00011707,2]
[361117960,1747277437850,-263.7000003,0.00011707,2]
[361117961,1747277437862,-673.18068025,0.00011707,2]
[361117962,1747277437900,-1486.05511616,0.00011707,2]
[361118000,1747277439827,-1286.54255485,0.00011707,2]
[361118001,1747277439839,-2810.78560211,0.00011707,2]
[361118002,1747277439849,-230.33636829,0.00011707,2]
[361118003,1747277439859,-156.32722884,0.00011707,2]
[361118004,1747277439868,-2579.0872,0.00011708,2]
[361118005,1747277439877,-596.80180026,0.00011709,2]
[361118006,1747277439886,-283.59484484,0.0001171,2]
[361118007,1747277439895,-420.0,0.00011714,2]
[361118008,1747277439905,-1680.0,0.00011721,2]
[361118009,1747277439914,-200.0,0.00011722,2]
[361118010,1747277439924,-206.68322227,0.00011799,2]
[361118011,1747277439934,-155.0,0.000118,2]
[361118012,1747277439944,-151.0,0.000118,2]
[361118013,1747277439953,-151.0,0.000118,2]
[361118014,1747277439963,-719.52358209,0.000118,2]
[361118015,1747277439973,-668.65185757,0.000118,2]
[361118016,1747277439982,-154.46329009,0.000118,2]
[361118017,1747277439993,-194.94496491,0.00011805,2]
[361118018,1747277440003,-330.2597258,0.00011806,2]
[361118019,1747277440013,-236.68172094,0.00011806,2]
[361118020,1747277440023,-401.40775801,0.00011806,2]
[361118021,1747277440032,-403.02462519,0.00011806,2]
[361118022,1747277440042,-400.0,0.00011806,2]
[361118023,1747277440054,-405.75891577,0.00011806,2]
[361118024,1747277440064,-401.26597076,0.00011806,2]
[361118025,1747277440075,-400.9882995,0.00011806,2]
[361118026,1747277440084,-523.70823764,0.00011806,2]
[361118027,1747277440094,-214.96630965,0.00011806,2]
[361118028,1747277440103,-198.460357,0.00011806,2]
[361118029,1747277440112,-403.21845168,0.00011806,2]
[361118030,1747277440122,-400.0,0.00011806,2]
[361118031,1747277440132,-402.80493901,0.00011806,2]
[361118032,1747277440142,-400.0,0.00011806,2]
[361118033,1747277440152,-361.58652867,0.00011806,2]
[361118034,1747277440161,-402.26767026,0.00011806,2]
[361118035,1747277440171,-400.0,0.00011806,2]
[361118036,1747277440180,-449.47731783,0.00011806,2]
[361118037,1747277440190,-260.62100204,0.00011806,2]
[361118038,1747277440199,-400.89481095,0.00011806,2]
[361118039,1747277440209,-510.79128273,0.00011806,2]
[361118040,1747277440218,-500.2874852,0.00011806,2]
[361118041,1747277440228,-400.0,0.00011806,2]
[361118042,1747277440237,-426.67909912,0.00011806,2]
[361118043,1747277440247,-344.16084474,0.00011806,2]
[361118044,1747277440258,-501.33058266,0.00011806,2]
[361118045,1747277440267,-400.0,0.00011806,2]
[361118046,1747277440277,-403.8341393,0.00011806,2]
[361118047,1747277440286,-400.0,0.00011806,2]
[361118048,1747277440296,-413.6843116,0.00011806,2]
[361118049,1747277440305,-410.47248538,0.00011806,2]
[361118050,1747277440314,-507.06863061,0.00011806,2]
[361118051,1747277440324,-400.0,0.00011806,2]
[361118052,1747277440333,-411.98061072,0.00011806,2]
[361118053,1747277440343,-410.11755551,0.00011806,2]
[361118054,1747277440352,-400.0,0.00011806,2]
[361118055,1747277440361,-400.0,0.00011806,2]
[361118056,1747277440371,-412.70823083,0.00011806,2]
[361118057,1747277440383,-476.767843,0.00011806,2]
[361118058,1747277440394,-6592.56142052,0.00011806,2]
[361118059,1747277440408,-3443.23856597,0.00011806,2]
[361118060,1747277440420,-2419.78327386,0.00011806,2]
[361118074,1747277442714,-809.0106486,0.00011806,2]
[361118077,1747277442768,-3872.22874411,0.00011806,2]
[361118078,1747277442781,-13248.98342194,0.00011806,2]
[361118079,1747277442791,-411.97865658,0.00011806,2]
[361118080,1747277442800,-401.22494201,0.00011806,2]
[361118081,1747277442810,-401.58355858,0.00011806,2]
[361118082,1747277442819,-414.41824624,0.00011806,2]
[361118083,1747277442829,-400.0,0.00011806,2]
[361118084,1747277442838,-228.53138926,0.00011806,2]
[361118085,1747277442850,-171.46861074,0.00011806,2]
[361118086,1747277442859,-400.0,0.00011806,2]
[361118087,1747277442868,-400.0,0.00011806,2]
[361118088,1747277442878,-475.42099616,0.00011806,2]
[361118089,1747277442887,-428.58230654,0.00011806,2]
[361118090,1747277442897,-490.76120883,0.00011806,2]
[361118091,1747277442907,-415.19919058,0.00011806,2]
[361118092,1747277442916,-402.37971907,0.00011806,2]
[361118093,1747277442926,-401.10848959,0.00011806,2]
[361118094,1747277442935,-642.77,0.00011806,2]
[361118095,1747277442945,-408.08469076,0.00011806,2]
[361118096,1747277442955,-400.0,0.00011806,2]
[361118097,1747277442964,-488.54507255,0.00011806,2]
[361118098,1747277442973,-400.0,0.00011806,2]
[361118099,1747277442982,-400.0,0.00011806,2]
[361118100,1747277442991,-400.0,0.00011806,2]
[361118101,1747277443001,-404.34954999,0.00011806,2]
[361118102,1747277443010,-422.0079365,0.00011806,2]
[361118103,1747277443019,-400.0,0.00011806,2]
[361118104,1747277443029,-483.11824318,0.00011806,2]
[361118105,1747277443038,-400.0,0.00011806,2]
[361118106,1747277443047,-424.5005869,0.00011806,2]
[361118107,1747277443057,-400.0,0.00011806,2]
[361118108,1747277443066,-400.0,0.00011806,2]
[361118109,1747277443075,-403.61277519,0.00011806,2]
[361118110,1747277443084,-410.67399212,0.00011806,2]
[361118111,1747277443093,-400.0,0.00011806,2]
[361118112,1747277443103,-400.0,0.00011806,2]
[361118113,1747277443112,-163.70804779,0.00011806,2]